lending/lending_fUSD_20260119
["ID","MTS","AMOUNT","RATE_DAILY","PERIOD"]
[402674563,1768787435666,-384.25407,0.0001782,2]
[402674564,1768787435675,-155.5402466,0.0001782,2]
[402674565,1768787435685,-391.248,0.00017824,2]
[402674566,1768787435695,-176.98159305,0.0001785,2]
[402674567,1768787435704,-424.4,0.00017853,2]
[402674568,1768787435714,-666.0,0.00017858,2]
[402674569,1768787435724,-2325.72,0.00017863,7]
[402674570,1768787435734,-2325.72,0.00017863,7]
[402674571,1768787435743,-2325.72,0.00017863,7]
[402674572,1768787435753,-2325.72,0.00017863,7]
[402674573,1768787435763,-500.0,0.00017863,2]
[402674574,1768787435772,-500.0,0.00017863,2]
[402674575,1768787435782,-500.0,0.00017863,2]
[402674576,1768787435792,-424.4,0.0001789,2]
[402674577,1768787435802,-515.40086122,0.00017899,2]
[402674578,1768787435812,-519.37739611,0.00017899,2]
[402674579,1768787435821,-33225.602,0.000179,2]
[402674580,1768787435832,-250.25336844,0.000179,3]
[402674581,1768787435844,-9890.28153866,0.000179,2]
[402674582,1768787435854,-176.98159305,0.000179,2]
[402674583,1768787435863,-198.6532606,0.000179,2]
[402674584,1768787435872,-321.96736577,0.000179,2]
[402674585,1768787435883,-790.46668564,0.00017918,2]
[402674586,1768787435892,-500.0,0.00017918,2]
[402674587,1768787435902,-500.0,0.00017918,2]
[402674588,1768787435911,-500.0,0.00017918,2]
[402674589,1768787435922,-424.4,0.00017926,2]
[402674590,1768787435936,-151.0,0.0001795,2]
[402674591,1768787435947,-1264.0,0.0001795,2]
[402674592,1768787435957,-151.0,0.0001795,2]
[402674593,1768787435968,-1264.0,0.0001795,2]
[402674594,1768787435978,-1264.0,0.0001795,2]
[402674595,1768787435988,-1264.0,0.0001795,2]
[402674596,1768787435997,-1264.0,0.0001795,2]
[402674597,1768787436007,-152.0,0.0001795,2]
[402674598,1768787436016,-152.0,0.0001795,2]
[402674599,1768787436026,-424.4,0.00017963,2]
[402674600,1768787436036,-150.09558209,0.00017973,2]
[402674601,1768787436046,-150.0,0.00017973,2]
[402674602,1768787436056,-500.0,0.00017973,2]
[402674603,1768787436066,-500.0,0.00017973,2]
[402674604,1768787436076,-500.0,0.00017973,2]
[402674605,1768787436086,-500.0,0.00017973,2]
[402674606,1768787436095,-4707.0,0.00017978,2]
[402674607,1768787436105,-666.0,0.00017981,2]
[402674608,1768787436115,-500.0,0.00017982,2]
[402674609,1768787436124,-194.36356781,0.00017982,2]
[402674610,1768787436134,-151.0,0.00017983,2]
[402674611,1768787436144,-151.0,0.00017983,2]
[402674612,1768787436154,-151.0,0.00017983,2]
[402674613,1768787436163,-151.0,0.00017983,2]
[402674614,1768787436172,-151.0,0.00017983,2]
[402674615,1768787436198,-842.0,0.00017983,2]
[402674616,1768787436218,-151.0,0.00017983,2]
[402674617,1768787436233,-151.0,0.00017986,2]
[402674618,1768787436250,-151.0,0.00017986,2]
[402674619,1768787436268,-151.0,0.00017986,2]
[402674620,1768787436286,-1264.0,0.00017986,2]
[402674621,1768787436302,-1264.0,0.00017986,2]
[402674622,1768787436317,-1264.0,0.00017986,2]
[402674623,1768787436334,-1264.0,0.00017986,2]
[402674624,1768787436351,-842.0,0.00017986,2]
[402674625,1768787436368,-842.0,0.00017986,2]
[402674626,1768787436383,-1264.0,0.00017986,2]
[402674627,1768787436400,-217.05798244,0.00017986,2]
[402674628,1768787436417,-152.0,0.00017986,2]
[402674629,1768787436431,-152.0,0.00017986,2]
[402674630,1768787436458,-152.0,0.00017986,2]
[402674631,1768787436480,-152.0,0.00017986,2]
[402674632,1768787436495,-151.0,0.00017986,2]
[402674633,1768787436507,-152.0,0.00017986,2]
[402674634,1768787436524,-151.0,0.00017986,2]
[402674635,1768787436537,-151.71388192,0.00017986,2]
[402674636,1768787436549,-151.0,0.00017986,2]
[402674637,1768787436567,-151.0,0.00017986,2]
[402674638,1768787436580,-151.0,0.00017986,2]
[402674639,1768787436592,-151.0,0.00017986,2]
[402674640,1768787436606,-151.0,0.00017986,2]
[402674641,1768787436623,-1264.0,0.00017986,2]
[402674642,1768787436641,-1264.0,0.00017986,2]
[402674643,1768787436656,-151.0,0.00017986,2]
[402674644,1768787436673,-151.0,0.00017986,2]
[402674645,1768787436690,-151.0,0.00017986,2]
[402674646,1768787436708,-151.0,0.00017986,2]
[402674647,1768787436735,-151.0,0.00017986,2]
[402674648,1768787436750,-151.0,0.00017986,2]
[402674649,1768787436766,-151.0,0.00017986,2]
[402674650,1768787436788,-1264.0,0.00017986,2]
[402674651,1768787436806,-151.0,0.00017986,2]
[402674652,1768787436823,-151.0,0.00017986,2]
[402674653,1768787436840,-151.0,0.00017986,2]
[402674654,1768787436857,-151.0,0.00017986,2]
[402674655,1768787436874,-842.0,0.00017986,2]
[402674656,1768787436890,-1264.0,0.00017986,2]
[402674657,1768787436905,-1264.0,0.00017986,2]
[402674658,1768787436921,-1264.0,0.00017986,2]
[402674659,1768787436936,-1264.0,0.00017986,2]
[402674660,1768787436951,-152.0,0.00017986,2]
[402674661,1768787436966,-152.0,0.00017986,2]
[402674662,1768787436980,-162.27765986,0.0001799,2]
[402674663,1768787436993,-162.27765986,0.0001799,2]
[402674664,1768787437008,-162.27765986,0.0001799,2]
[402674665,1768787437022,-254.10645391,0.00017999,2]
[402674666,1768787437037,-500.0,0.00017999,2]
[402674667,1768787437051,-565.38922641,0.00017999,2]
[402674668,1768787437065,-2367.8481157,0.00017999,2]
[402674669,1768787437078,-154.280159,0.00017999,2]
[402674670,1768787437091,-500.0,0.00017999,2]
[402674671,1768787437109,-500.0,0.00017999,2]
[402674672,1768787437123,-507.54430548,0.00017999,2]
[402674673,1768787437137,-508.93652935,0.00017999,2]
[402674674,1768787437151,-509.82664314,0.00017999,2]
[402674675,1768787437165,-552.54548358,0.00017999,2]
[402674676,1768787437180,-500.0,0.00017999,2]
[402674677,1768787437194,-500.0,0.00017999,2]
[402674678,1768787437208,-254.04950237,0.00017999,2]
[402674679,1768787437223,-830289.25331708,0.00018,2]
[402674680,1768787437301,-1568.58085863,0.00018,2]
[402674681,1768787437317,-9032.55709336,0.00018,2]
[402674689,1768787439960,-297.47508035,0.00017602,2]
[402674690,1768787439983,-4456.31313631,0.00017602,2]
[402674691,1768787439995,-1006.6333465,0.00017602,2]
[402674692,1768787440006,-2853.19791604,0.00017602,2]
[402674693,1768787440016,-4507.3520803,0.00018,2]
[402674694,1768787440028,-792.70555846,0.00018,2]
[402674695,1768787440079,-329.20111027,0.00018,2]
[402674710,1768787440810,-1.7e-07,0.00017751,2]
[402674711,1768787440852,-8613.61947903,0.00017751,2]
[402674712,1768787440863,-55112.5726547,0.00018,2]
[402674713,1768787440875,-8314.8375977,0.00018,2]
[402674714,1768787440887,-470342.00947443,0.00018,2]
[402674715,1768787440916,-2187609.24022207,0.00018,2]
[402674725,1768787442978,-500.0,0.000179,2]
[402674726,1768787442987,-2083.6275441,0.00018,2]
[402674728,1768787443032,-752.43307538,0.00018,2]
[402674729,1768787443105,-208.76619137,0.00018,2]
[402674730,1768787443123,-12705.7316035,0.00018,2]
[402674732,1768787445568,-8613.6194792,0.000179,2]
[402674733,1768787445578,-1886.3805208,0.00018,2]
[402674738,1768787565737,164.84051,0.0001507,2]
[402674739,1768787589563,-2663.79,0.00015604,2]
[402674740,1768787589590,-195.0,0.0001598,2]
[402674741,1768787589617,-193.57104758,0.0001598,2]
[402674742,1768787589646,-284.59069559,0.0001598,2]
[402674743,1768787589675,-166.66,0.0001601,2]
[402674744,1768787589703,-166.66,0.00016347,2]
[402674745,1768787589730,-509.83201942,0.00016356,2]
[402674746,1768787589759,-291.69207219,0.00016356,2]
[402674747,1768787589789,-510.34187007,0.00016356,2]
[402674748,1768787590008,-35.7345903,0.00016356,2]
[402674749,1768787590039,-500.0,0.000164,2]
[402674750,1768787590072,-500.0,0.000164,2]
[402674751,1768787590104,-500.0,0.000164,2]
[402674752,1768787590136,-500.0,0.000164,2]
[402674753,1768787590169,-500.0,0.000164,2]
[402674754,1768787590200,-500.0,0.000164,2]
[402674755,1768787590231,-500.0,0.000164,2]
[402674756,1768787590261,-500.0,0.000164,2]
[402674757,1768787590291,-500.0,0.000164,2]
[402674758,1768787590321,-428.5408194,0.000164,2]
[402674759,1768787592382,-71.4591806,0.000164,2]
[402674760,1768787592424,-500.0,0.000164,2]
[402674761,1768787592462,-500.0,0.000164,2]
[402674762,1768787592498,-500.0,0.000164,2]
[402674763,1768787592535,-500.0,0.000164,2]
[402674764,1768787592571,-500.0,0.000164,2]
[402674765,1768787592605,-500.0,0.000164,2]
[402674766,1768787592639,-500.0,0.000164,2]
[402674767,1768787592679,-500.0,0.000164,2]
[402674768,1768787592714,-500.0,0.000164,2]
[402674769,1768787592748,-357.0916388,0.000164,2]
[402674770,1768787598598,-142.9083612,0.000164,2]
[402674771,1768787598629,-500.0,0.000164,2]
[402674772,1768787598661,-500.0,0.000164,2]
[402674773,1768787598692,-500.0,0.000164,2]
[402674774,1768787598723,-500.0,0.000164,2]
[402674775,1768787598753,-361.82684186,0.000164,2]
[402674776,1768787598790,-500.0,0.000164,2]
[402674777,1768787599164,-5000.01,0.00016401,2]
[402674778,1768787601692,-10000.01,0.00016401,2]
[402674783,1768788061778,-283.0,0.00015902,2]
[402674784,1768788061808,-300.0,0.00015902,2]
[402674785,1768788061839,-1734.84,0.00015902,2]
[402674786,1768788061870,-301.34147786,0.00015902,2]
[402674787,1768788061900,-195.0,0.00015933,2]
[402674788,1768788061930,-1000.0,0.00015965,2]
[402674789,1768788061960,-300.0,0.00016,2]
[402674790,1768788061990,-571.64704428,0.000163,2]
[402674791,1768788062160,-628.35295572,0.000163,2]
[402674792,1768788064618,-300.0,0.000163,2]
[402674793,1768788064649,-1200.0,0.000163,2]
[402674794,1768788064679,-300.0,0.000163,2]
[402674795,1768788064708,-250.0,0.00016301,2]
[402674796,1768788064786,-5900.01,0.00016301,2]
[402674797,1768788067785,-10000.01,0.00016301,2]
[402674802,1768788518079,730.22,0.00027397,120]
[402674803,1768788518316,730.22,0.00027397,120]
[402674804,1768788518557,730.22,0.00027397,120]
[402674805,1768788519020,730.22,0.00027397,120]
[402674806,1768788519253,730.22,0.00027397,120]
[402674807,1768788519485,730.22,0.00027397,120]
[402674808,1768788519762,730.22,0.00027397,120]
[402674809,1768788519999,730.22,0.00027397,120]
[402674810,1768788520232,730.22,0.00027397,120]
[402674811,1768788520452,730.22,0.00027397,120]
[402674812,1768788520683,730.22,0.00027397,120]
[402674813,1768788520953,730.22,0.00027397,120]
[402674814,1768788521208,730.22,0.00027397,120]
[402674815,1768788521440,730.22,0.00027397,120]
[402674816,1768788521668,730.22,0.00027397,120]
[402674817,1768788521906,730.22,0.00027397,120]
[402674818,1768788522137,730.22,0.00027397,120]
[402674819,1768788522357,730.22,0.00027397,120]
[402674820,1768788522640,730.22,0.00027397,120]
[402674821,1768788522868,730.22,0.00027397,120]
[402674822,1768788523127,730.22,0.00027397,120]
[402674823,1768788523389,730.22,0.00027397,120]
[402674824,1768788523621,730.22,0.00027397,120]
[402674825,1768788523868,730.22439938,0.00027397,120]
[402674826,1768788524324,-150.0,0.00015574,2]
[402674827,1768788524357,-304.68,0.0001584,2]
[402674828,1768788524386,-250.0,0.0001584,2]
[402674829,1768788524414,-299.20378663,0.0001584,2]
[402674830,1768788524443,-971.44,0.00015918,2]
[402674831,1768788524473,-1519.736,0.00016073,2]
[402674832,1768788524503,-300.0,0.00016199,2]
[402674833,1768788524532,-154.14104545,0.000162,2]
[402674834,1768788524561,-155.35221,0.000162,2]
[402674835,1768788524590,-155.52459848,0.000162,2]
[402674836,1768788524618,-154.32607592,0.000162,2]
[402674837,1768788524647,-155.45042616,0.000162,2]
[402674838,1768788524675,-151.99077629,0.000162,2]
[402674839,1768788524704,-181.00021064,0.000162,2]
[402674840,1768788524734,-42.91602234,0.000162,2]
[402674841,1768788525036,-108.48769618,0.000162,2]
[402674842,1768788527089,-1200.0,0.000163,2]
[402674843,1768788527129,-7600.01,0.00016301,2]
[402674863,1768788631581,-419.83160735,0.00016201,2]
[402674865,1768788631591,-450.0,0.00016225,2]
[402674866,1768788631601,-1200.0,0.00016225,2]
[402674867,1768788631610,-125392.97837849,0.00016226,2]
[402674868,1768788631621,-21315.80155385,0.00016226,2]
[402674869,1768788631635,-748.00966555,0.00016226,2]
[402674870,1768788631647,-14128.53341984,0.00016226,2]
[402674871,1768788631659,-30900.0,0.00016226,2]
[402674872,1768788631671,-612.89013257,0.00016226,2]
[402674873,1768788631689,-820.54991355,0.00016226,2]
[402674874,1768788631701,-1606.72727158,0.00016226,2]
[402674875,1768788631713,-3623.32297995,0.00016226,2]
[402674876,1768788631724,-1998.50742485,0.00016226,2]
[402674877,1768788631735,-4158.62726896,0.00016226,2]
[402674878,1768788631746,-2659.24584886,0.00016226,2]
[402674879,1768788631786,-452.91224315,0.00016226,2]
[402674880,1768788631802,-265.84703492,0.00016226,2]
[402674901,1768788637703,-500.0,0.00016225,2]
[402674902,1768788637712,-164.35505119,0.00016225,2]
[402674903,1768788637722,-500.0,0.00016225,2]
[402674904,1768788637731,-500.0,0.00016225,2]
[402674905,1768788637740,-500.0,0.00016225,2]
[402674906,1768788637749,-317.87572381,0.00016225,2]
[402674907,1768788637759,-351.306005,0.00016225,2]
[402674908,1768788637770,-148.693995,0.00016225,2]
[402674909,1768788637779,-500.0,0.00016225,2]
[402674910,1768788637788,-500.0,0.00016225,2]
[402674911,1768788637798,-500.0,0.00016225,2]
[402674912,1768788637807,-500.0,0.00016225,2]
[402674913,1768788637816,-500.0,0.00016225,2]
[402674914,1768788637825,-500.0,0.00016225,2]
[402674915,1768788637835,-500.0,0.00016225,2]
[402674916,1768788637844,-500.0,0.00016225,2]
[402674917,1768788637854,-158.40713989,0.00016225,2]
[402674918,1768788637863,-500.0,0.00016225,2]
[402674919,1768788637872,-21139.7064461,0.00016226,2]
[402674920,1768788637887,-1043.94865816,0.00016226,2]
[402674921,1768788637898,-435.68171857,0.00016226,2]
[402674922,1768788637909,-584.63294259,0.00016226,2]
[402674923,1768788637929,-3377.67139846,0.00016226,2]
[402674924,1768788637938,-535.34,0.00016298,2]
[402674925,1768788637948,-8760.3449,0.00016301,2]
[402674926,1768788637957,-3358.2539771,0.00016326,2]
[402674927,1768788637966,-1747.76992115,0.00016326,2]
[402674994,1768788639711,-776.90309751,0.00016326,2]
[402674995,1768788639755,-425.43271289,0.00016326,2]
[402674996,1768788639909,-7044.40515575,0.00016326,2]
[402674997,1768788639918,-1000.0,0.00016337,2]
[402674998,1768788639927,-9212.73446129,0.00016338,2]
[402674999,1768788639936,-912.61307499,0.00016338,2]
[402675000,1768788639946,-175.14996934,0.00016338,2]
[402675001,1768788639956,-517.78,0.00016391,2]
[402675002,1768788639966,-200.0,0.00016391,2]
[402675003,1768788639975,-200.0,0.00016391,2]
[402675004,1768788639984,-500.0,0.00016391,2]
[402675005,1768788639993,-500.0,0.00016391,2]
[402675006,1768788640003,-500.0,0.00016391,2]
[402675007,1768788640012,-500.0,0.00016391,2]
[402675008,1768788640021,-500.0,0.00016391,2]
[402675009,1768788640032,-205.06792171,0.00016391,2]
[402675010,1768788640042,-500.0,0.00016391,2]
[402675011,1768788640052,-500.0,0.00016391,2]
[402675012,1768788640061,-500.0,0.00016391,2]
[402675013,1768788640070,-500.0,0.00016391,2]
[402675014,1768788640079,-500.0,0.00016391,2]
[402675015,1768788640089,-500.0,0.00016391,2]
[402675016,1768788640098,-151.0,0.00016391,2]
[402675017,1768788640107,-151.0,0.00016391,2]
[402675018,1768788640116,-151.0,0.00016391,2]
[402675019,1768788640126,-151.0,0.00016391,2]
[402675020,1768788640135,-151.0,0.00016391,2]
[402675021,1768788640145,-151.0,0.00016391,2]
[402675022,1768788640154,-151.0,0.00016391,2]
[402675023,1768788640164,-151.0,0.00016391,2]
[402675024,1768788640173,-151.0,0.00016391,2]
[402675026,1768788640182,-151.0,0.00016391,2]
[402675028,1768788640192,-151.0,0.00016391,2]
[402675030,1768788640201,-500.0,0.00016391,2]
[402675032,1768788640211,-155.31,0.000164,2]
[402675034,1768788640221,-504.60985447,0.000164,2]
[402675036,1768788640233,-252.45792426,0.00016401,2]
[402675038,1768788640242,-151.0,0.00016401,2]
[402675040,1768788640252,-1000.0,0.00016438,2]
[402675042,1768788640262,-500.0,0.00016438,2]
[402675044,1768788640271,-322.89789499,0.00016438,2]
[402675046,1768788640280,-500.0,0.00016438,2]
[402675048,1768788640289,-500.0,0.00016438,2]
[402675050,1768788640301,-1000.0,0.00016438,2]
[402675052,1768788640310,-1000.0,0.00016438,2]
[402675055,1768788640319,-1000.0,0.00016438,2]
[402675057,1768788640328,-1000.0,0.00016438,2]
[402675059,1768788640337,-1000.0,0.00016438,2]
[402675061,1768788640346,-1000.0,0.00016438,2]
[402675063,1768788640355,-1000.0,0.00016438,2]
[402675065,1768788640364,-1000.0,0.00016438,2]
[402675067,1768788640373,-1000.0,0.00016438,2]
[402675069,1768788640382,-1000.0,0.00016438,2]
[402675071,1768788640391,-1000.0,0.00016438,2]
[402675073,1768788640400,-1000.0,0.00016438,2]
[402675074,1768788640409,-1000.0,0.00016438,2]
[402675075,1768788640418,-1000.0,0.00016438,2]
[402675076,1768788640429,-1000.0,0.00016438,2]
[402675077,1768788640439,-1000.0,0.00016438,2]
[402675078,1768788640449,-1000.0,0.00016438,2]
[402675079,1768788640460,-1000.0,0.00016438,2]
[402675080,1768788640470,-1000.0,0.00016438,2]
[402675081,1768788640479,-1000.0,0.00016438,2]
[402675082,1768788640489,-1000.0,0.00016438,2]
[402675083,1768788640499,-1000.0,0.00016438,2]
[402675084,1768788640510,-1000.0,0.00016438,2]
[402675085,1768788640519,-1000.0,0.00016438,2]
[402675086,1768788640530,-1000.0,0.00016438,2]
[402675087,1768788640540,-1000.0,0.00016438,2]
[402675088,1768788640550,-1000.0,0.00016438,2]
[402675089,1768788640560,-1000.0,0.00016438,2]
[402675090,1768788640569,-1000.0,0.00016438,2]
[402675091,1768788640579,-1000.0,0.00016438,2]
[402675092,1768788640588,-1000.0,0.00016438,2]
[402675093,1768788640598,-1000.0,0.00016438,2]
[402675094,1768788640608,-1000.0,0.00016438,2]
[402675095,1768788640617,-1000.0,0.00016438,2]
[402675096,1768788640627,-1000.0,0.00016438,2]
[402675097,1768788640636,-1000.0,0.00016438,2]
[402675098,1768788640645,-1000.0,0.00016438,2]
[402675099,1768788640654,-948.0,0.00016438,2]
[402675100,1768788640663,-9212.73446121,0.00016512,2]
[402675101,1768788640672,-912.61307495,0.00016512,2]
[402675102,1768788640682,-971.44,0.00016515,2]
[402675103,1768788640691,-505.81870076,0.00016599,2]
[402675104,1768788640700,-597.10665716,0.00016599,2]
[402675105,1768788640709,-502.09877135,0.00016599,2]
[402675106,1768788640718,-500.0,0.00016599,2]
[402675107,1768788640728,-505.73656178,0.00016599,2]
[402675108,1768788640738,-517.78,0.00016665,2]
[402675109,1768788641030,-2761.55,0.00016683,2]
[402675110,1768788641042,-166.66,0.00016684,2]
[402675111,1768788641052,-6921.63860128,0.00016685,2]
[402675112,1768788641086,-2291.09585993,0.00016685,2]
[402675113,1768788641096,-912.61307495,0.00016685,2]
[402675114,1768788641105,-9212.73446121,0.00016859,2]
[402675115,1768788641115,-912.61307495,0.00016859,2]
[402675116,1768788641125,-175.14996933,0.00016859,2]
[402675117,1768788641135,-574.12855637,0.00016929,2]
[402675118,1768788641144,-1999.0,0.00016929,2]
[402675119,1768788641155,-1076.39912432,0.00016929,2]
[402675120,1768788641165,-174.61919141,0.00016929,2]
[402675121,1768788641175,-313.14,0.00016933,2]
[402675122,1768788641185,-517.78,0.00016939,2]
[402675123,1768788641195,-503.36060886,0.00016939,2]
[402675124,1768788641205,-250.0,0.00017,2]
[402675125,1768788641216,-166.66,0.00017021,2]
[402675126,1768788641229,-9212.73446121,0.00017032,2]
[402675127,1768788641239,-912.61307495,0.00017032,2]
[402675128,1768788641249,-835.0,0.0001704,2]
[402675129,1768788641259,-971.44,0.00017112,2]
[402675130,1768788641270,-169.73,0.00017116,2]
[402675131,1768788641279,-250.0,0.00017132,2]
[402675132,1768788641289,-9212.73446121,0.00017206,2]
[402675133,1768788641301,-912.61307495,0.00017206,2]
[402675134,1768788641312,-517.78,0.00017213,2]
[402675135,1768788641322,-1000.0,0.0001726,2]
[402675136,1768788641333,-166.66,0.00017359,2]
[402675137,1768788641342,-9212.73446121,0.00017379,2]
[402675138,1768788641352,-912.61307495,0.00017379,2]
[402675139,1768788641362,-175.14996933,0.00017379,2]
[402675140,1768788641372,-600.0,0.00017424,2]
[402675141,1768788641382,-195.0,0.00017424,2]
[402675142,1768788641392,-250.0,0.00017424,2]
[402675143,1768788641401,-300.0,0.00017424,2]
[402675144,1768788641411,-300.0,0.00017424,2]
[402675145,1768788641420,-500.0,0.0001746,2]
[402675146,1768788641430,-595.37131296,0.00017477,2]
[402675147,1768788641439,-210.29378316,0.00017477,2]
[402675148,1768788641447,-517.83,0.00017487,2]
[402675149,1768788641457,-2000.0,0.000175,2]
[402675150,1768788641466,-1000.0,0.00017534,2]
[402675151,1768788641476,-9212.73446121,0.00017553,2]
[402675152,1768788641486,-912.61307495,0.00017553,2]
[402675153,1768788641495,-168.0,0.00017621,2]
[402675154,1768788641504,-423.0,0.00017647,2]
[402675155,1768788641514,-317.0,0.0001768,2]
[402675156,1768788641523,-166.66,0.00017696,2]
[402675157,1768788641533,-500.0,0.00017699,2]
[402675158,1768788641542,-500.0,0.00017699,2]
[402675159,1768788641555,-500.0,0.00017699,2]
[402675160,1768788641566,-500.0,0.00017699,2]
[402675161,1768788641575,-500.0,0.00017699,2]
[402675162,1768788641585,-971.44,0.00017709,2]
[402675163,1768788641594,-9212.73446121,0.00017726,2]
[402675164,1768788641603,-912.61307495,0.00017726,2]
[402675165,1768788641613,-555.21642172,0.00017754,2]
[402675166,1768788641622,-500.0,0.00017754,2]
[402675167,1768788641631,-500.0,0.00017754,2]
[402675168,1768788641640,-500.0,0.00017754,2]
[402675169,1768788641649,-500.0,0.00017754,2]
[402675170,1768788641659,-250.0,0.0001779,2]
[402675171,1768788641668,-168.0,0.00017807,2]
[402675172,1768788641678,-1000.0,0.00017808,2]
[402675173,1768788641687,-501.86525907,0.00017809,2]
[402675174,1768788641696,-500.0,0.00017809,2]
[402675175,1768788641705,-543.51904118,0.00017809,2]
[402675176,1768788641715,-500.0,0.00017809,2]
[402675177,1768788641724,-320.96604,0.0001782,2]
[402675178,1768788641734,-320.96605,0.0001782,2]
[402675179,1768788641744,-304.68,0.0001782,2]
[402675180,1768788641753,-1680.0,0.00017824,2]
[402675181,1768788641762,-1269.781,0.0001783,2]
[402675182,1768788641771,-412.59,0.0001783,2]
[402675183,1768788641780,-915.533,0.0001783,2]
[402675184,1768788641790,-1202.068,0.0001783,2]
[402675185,1768788641800,-2440.0,0.0001783,2]
[402675186,1768788641809,-6562.0,0.0001783,2]
[402675187,1768788641819,-4826.0,0.0001783,2]
[402675188,1768788641828,-276.46772046,0.00017845,2]
[402675189,1768788641837,-487.72182965,0.00017845,2]
[402675190,1768788641846,-729.60268843,0.00017845,2]
[402675191,1768788641856,-987.1686,0.00017845,2]
[402675192,1768788641865,-250.0,0.00017848,2]
[402675193,1768788641874,-341.1014826,0.00017863,2]
[402675194,1768788641884,-500.0,0.00017863,2]
[402675195,1768788641893,-423.0,0.00017877,2]
[402675196,1768788641902,-38800.999999,0.000179,2]
[402675197,1768788641912,-9212.73446121,0.000179,2]
[402675198,1768788641921,-912.61307495,0.000179,2]
[402675199,1768788641931,-175.14996933,0.000179,2]
[402675200,1768788641941,-423.0,0.0001791,2]
[402675201,1768788641950,-500.0,0.00017918,2]
[402675202,1768788641960,-1000.0,0.0001796,2]
[402675203,1768788641971,-151.0,0.00017964,2]
[402675204,1768788641980,-150.0,0.00017973,2]
[402675205,1768788641989,-500.0,0.00017973,2]
[402675206,1768788641999,-500.0,0.00017973,2]
[402675207,1768788642009,-996.0690448,0.00017979,2]
[402675208,1768788642018,-16270.42040298,0.00017979,2]
[402675209,1768788642059,-7856.16888753,0.00017979,2]
[402675210,1768788642071,-765.44534152,0.00017979,2]
[402675211,1768788642081,-2333.0,0.00017979,2]
[402675212,1768788642146,-8758.67131207,0.00017979,2]
[402675213,1768788642156,-168.0,0.00017981,2]
[402675214,1768788642165,-3089.8637378,0.00017998,2]
[402675215,1768788642175,-307.67304902,0.00017999,2]
[402675216,1768788642184,-287.77981523,0.00017999,2]
[402675217,1768788642193,-382.78432403,0.00017999,2]
[402675218,1768788642202,-190.05473829,0.00017999,2]
[402675219,1768788642211,-234.80924768,0.00017999,2]
[402675220,1768788642223,-5146.0,0.00018,2]
[402675221,1768788642234,-2011.56,0.00018,2]
[402675222,1768788642243,-639.13510907,0.00018,2]
[402675223,1768788642252,-997413.90925609,0.00018,2]
[402675224,1768788642263,-456929.23676299,0.00018,2]
[402675225,1768788642272,-712049.7628698,0.00018,2]
[402675238,1768788642857,-151.0,0.000175,2]
[402675239,1768788642866,-252.45792426,0.000175,2]
[402675240,1768788642876,-1000.0,0.00017922,2]
[402675241,1768788642885,-23.45898554,0.00018,2]
[402675242,1768788642902,-201000.00037135,0.00018,2]
[402675243,1768788642916,-1000.0,0.00018,2]
[402675244,1768788642927,-710.92467494,0.00018,2]
[402675245,1768788642959,-1676.38428101,0.00018,2]
[402675246,1768788642975,-1632.89,0.00018,2]
[402675247,1768788643011,-2207.96057256,0.00018,2]
[402675248,1768788643023,-1876.43942744,0.00018,2]
[402675249,1768788643033,-2353.88008,0.00018,2]